bitfinex/quotes_ETHUSD_20220201
["timestamp","ask_amount","ask_price","bid_price","bid_amount"]
[1643676256950,1.56692574,2686.4,2686.3,3.25986779]
[1643676257147,1.56692574,2686.4,2686.3,5.19536427]
[1643676257348,2.26660641,2686.8,2686.3,5.19536427]
[1643676257548,1.56692574,2686.7,2686.3,5.19536427]
[1643676257946,1.56692574,2686.6,2686.3,5.19536427]
[1643676258149,0.88568067,2687.0,2686.5,0.18606]
[1643676258350,0.93077757,2687.3,2686.7,0.34380014]
[1643676258351,1.56661114,2686.9,2686.7,0.34380014]
[1643676258550,0.69968067,2687.1,2686.8,2.487071]
[1643676258947,0.69968067,2687.1,2686.8,0.535]
[1643676259149,2.26626989,2687.1,2686.8,2.4891213]
[1643676259353,1.56658922,2687.0,2686.8,4.3497913]
[1643676259576,1.56658922,2686.9,2686.8,4.3497913]
[1643676259780,2.26626989,2687.2,2686.8,4.3497913]
[1643676260178,1.56658922,2687.1,2686.8,2.39567]
[1643676260376,1.56658922,2687.0,2686.8,2.39567]
[1643676261078,0.69968067,2687.1,2686.8,2.39567]
[1643676261079,1.56658922,2686.9,2686.8,2.39567]
[1643676261489,0.69968067,2687.1,2686.8,2.39567]
[1643676262092,1.56658922,2687.0,2686.8,2.39567]
[1643676262280,1.56658922,2686.9,2686.8,2.39567]
[1643676262482,0.69968067,2687.1,2686.8,2.39567]
[1643676262780,2.26626989,2687.0,2686.8,2.39567]
[1643676262991,1.56658922,2686.9,2686.8,2.39567]
[1643676263232,1.56658922,2687.0,2686.8,2.39567]
[1643676263430,1.56658922,2686.9,2686.8,2.39567]
[1643676263629,0.69968067,2687.0,2686.8,2.39567]
[1643676264231,2.41551089,2687.1,2686.8,2.39567]
[1643676264433,1.56658922,2687.0,2686.8,2.39567]
[1643676265234,2.26626989,2687.0,2686.8,2.39567]
[1643676265435,1.56658922,2686.9,2686.8,2.39567]
[1643676266143,0.84892167,2687.1,2686.7,0.93033]
[1643676266144,1.75258922,2687.0,2686.7,0.93033]
[1643676266341,1.75258922,2687.0,2686.1,2.04683]
[1643676266342,3.41266989,2686.9,2686.4,1.12012345]
[1643676266535,1.56658922,2686.8,2686.4,1.12012345]
[1643676266977,0.88568067,2686.7,2686.0,0.186]
[1643676267201,2.26626989,2686.6,2686.0,0.186]
[1643676267382,1.11677,2686.7,2686.0,0.186]
[1643676267383,2.45226989,2686.5,2686.0,0.186]
[1643676267583,1.56658922,2686.4,2686.0,0.186]
[1643676267783,0.186,2686.3,2686.0,0.186]
[1643676267985,1.56658922,2686.2,2686.0,0.186]
[1643676268390,1.56658922,2686.1,2685.8,1.86146]
[1643676268588,0.186,2686.5,2686.0,0.93075]
[1643676268900,1.56699735,2686.4,2686.0,0.93075]
[1643676269082,0.186,2686.3,2686.0,0.93075]
[1643676269283,0.9307789,2686.6,2686.0,0.93075]
[1643676269284,1.56699735,2686.2,2686.0,0.93075]
[1643676269485,1.56699735,2686.1,2686.0,0.93075]
[1643676270284,1.56699735,2686.4,2686.0,0.93075]
[1643676270486,0.88568067,2686.5,2686.0,0.93075]
[1643676270487,1.56699735,2686.3,2686.0,0.93075]
[1643676270741,0.88568067,2686.5,2686.0,0.93075]
[1643676270742,1.56699735,2686.2,2686.0,0.93075]
[1643676270945,1.56699735,2686.1,2686.0,0.93075]
[1643676271150,0.69968067,2686.5,2686.0,0.93075]
[1643676271349,1.56699735,2686.4,2686.0,0.93075]
[1643676271554,1.56699735,2686.3,2686.0,0.93075]
[1643676271750,1.56699735,2686.2,2686.0,0.93075]
[1643676271952,1.56699735,2686.1,2686.0,0.93075]
[1643676272151,0.186,2686.6,2686.0,0.93075]
[1643676272152,1.56699735,2686.4,2686.0,0.93075]
[1643676272352,0.335278,2686.6,2686.0,3.33744532]
[1643676272353,1.56699735,2686.3,2686.0,3.33744532]
[1643676272569,1.56699735,2686.2,2686.1,6.235]
[1643676272752,5.770779,2687.2,2686.1,6.235]
[1643676272753,0.69968067,2686.9,2686.2,0.93044]
[1643676272951,0.69968067,2686.9,2686.3,2.02394366]
[1643676273952,0.69968067,2686.9,2686.4,0.93044]
[1643676274158,2.26647078,2687.0,2686.4,0.93044]
[1643676274576,1.56679011,2686.9,2686.4,0.93044]
[1643676274778,1.56679011,2686.8,2686.4,0.93044]
[1643676274976,1.56679011,2686.7,2686.4,0.93044]
[1643676275178,1.56679011,2686.6,2686.4,0.93044]
[1643676275380,1.56679011,2686.5,2686.4,0.93044]
[1643676275580,1.56679011,2686.5,2686.4,3.78044]
[1643676276077,0.69968067,2687.0,2686.4,3.78044]
[1643676276277,2.26647078,2687.0,2686.4,3.78044]
[1643676276478,1.56679011,2686.9,2686.4,3.78044]
[1643676276681,1.56679011,2686.8,2686.4,3.78044]
[1643676276877,0.69968067,2687.0,2686.4,4.08044]
[1643676276878,1.56679011,2686.7,2686.4,4.08044]
[1643676277078,0.69968067,2687.1,2686.6,1.86085]
[1643676277281,0.69968067,2687.1,2686.9,0.44809132]
[1643676277484,0.149279,2687.2,2686.7,1.97054293]
[1643676277485,1.56665525,2687.0,2686.8,0.535]
[1643676277822,0.69968067,2687.3,2686.9,0.535]
[1643676278274,0.69968067,2687.3,2686.5,5.16543041]
[1643676278275,0.186,2687.2,2686.5,3.6927]
[1643676278467,1.56654563,2687.1,2686.5,4.02961056]
[1643676278766,1.56654563,2687.0,2686.6,1.0]
[1643676278963,1.56654563,2686.9,2686.7,0.186]
[1643676279164,0.69968067,2687.3,2686.7,0.186]
[1643676279165,1.56654563,2686.8,2686.7,0.186]
[1643676279368,1.56654563,2686.8,2686.7,2.35930082]
[1643676279567,1.56654563,2687.2,2686.7,4.80930082]
[1643676279766,1.56654563,2687.1,2686.7,3.12388066]
[1643676279966,1.56654563,2687.0,2686.8,0.3]
[1643676280167,1.56654563,2686.9,2686.8,0.3]
[1643676280566,0.69968067,2687.3,2686.8,0.3]
[1643676280769,0.69968067,2687.3,2686.6,3.0469]
[1643676280770,0.69968067,2687.3,2686.6,2.0469]
[1643676280969,2.4522263,2687.2,2686.6,1.8609]
[1643676281170,1.56654563,2687.1,2686.6,1.8609]
[1643676281370,1.56654563,2687.0,2686.6,1.8609]
[1643676282200,1.56654563,2687.0,2686.8,0.9304]
[1643676284806,1.56654563,2686.9,2686.8,0.9304]
[1643676285005,0.69968067,2687.2,2686.8,0.9304]
[1643676285408,1.56654563,2687.3,2686.9,0.535]
[1643676285409,2.2662263,2687.3,2686.9,0.535]
[1643676285608,1.56654563,2687.2,2687.0,1.86048]
[1643676285830,1.56654563,2687.1,2687.0,2.86048]
[1643676286032,0.69968067,2687.3,2687.0,2.86048]
[1643676286237,0.69968067,2687.3,2687.0,1.18951336]
[1643676286434,0.69968067,2687.3,2687.0,0.18951336]
[1643676288435,0.69968067,2687.3,2687.0,1.18951336]
[1643676288637,0.69968067,2687.3,2687.0,0.18951336]
[1643676289062,2.2662263,2687.3,2687.0,0.18951336]
[1643676289235,1.56654563,2687.2,2687.0,0.18951336]
[1643676289493,1.56654563,2687.1,2687.0,0.18951336]
[1643676289684,0.69968067,2687.3,2687.0,0.18951336]
[1643676289888,0.69968067,2687.3,2687.0,1.18951336]
[1643676290108,0.69968067,2687.3,2687.0,0.18951336]
[1643676290109,2.2662263,2687.3,2687.0,0.18951336]
[1643676290285,1.56654563,2687.2,2687.0,1.18951336]
[1643676290486,0.69968067,2687.3,2687.0,0.18951336]
[1643676290885,0.69968067,2687.4,2687.0,3.27112065]
[1643676291086,1.56654563,2687.3,2687.0,3.27112065]
[1643676291290,1.56654563,2687.2,2687.0,1.18951336]
[1643676291486,0.69968067,2687.4,2687.0,1.18951336]
[1643676291487,1.56654563,2687.1,2687.0,1.18951336]
[1643676291685,1.56654563,2687.1,2687.0,0.18951336]
[1643676292286,0.69968067,2687.4,2687.0,0.18951336]
[1643676292890,2.2662263,2687.5,2687.0,0.18951336]
[1643676293245,0.186,2687.6,2687.0,0.18951336]
[1643676293246,2.2662263,2687.4,2687.0,0.18951336]
[1643676293431,1.56654563,2687.3,2687.0,0.18951336]
[1643676293628,1.56654563,2687.2,2687.0,0.18951336]
[1643676293829,1.56654563,2687.1,2687.0,0.18951336]
[1643676294028,2.2662263,2687.5,2687.0,0.18951336]
[1643676294733,0.69968067,2687.4,2687.0,0.18951336]
[1643676294934,0.01214184,2687.1,2686.9,0.50995148]
[1643676295145,0.01214184,2687.1,2686.0,2.04672]
[1643676295146,6.46547763,2687.0,2685.8,0.37210525]
[1643676295343,0.01222765,2686.4,2685.4,1.30412102]
[1643676295534,1.75254563,2686.3,2685.4,1.30412102]
[1643676295733,1.56654563,2686.2,2685.4,1.30412102]
[1643676296032,0.186,2686.1,2685.4,1.30412102]
[1643676296232,1.56654563,2686.0,2685.6,0.42188982]
[1643676296634,1.56654563,2685.9,2685.3,3.1819]
[1643676296837,1.56654563,2685.9,2685.2,0.186]
[1643676296838,1.56654563,2685.8,2685.2,0.186]
[1643676297090,2.05254563,2685.8,2685.2,0.186]
[1643676297291,1.56654563,2685.7,2685.2,0.186]
[1643676297488,0.186,2685.6,2685.2,0.186]
[1643676297693,1.56654563,2685.5,2685.2,0.186]
[1643676297891,0.186,2685.4,2685.2,0.186]
[1643676298196,3.15267568,2686.2,2685.2,0.186]
[1643676298197,0.186,2685.8,2685.2,0.186]
[1643676298399,1.56712433,2685.7,2685.2,0.186]
[1643676298596,1.56712433,2685.6,2685.2,0.186]
[1643676298795,0.186,2686.2,2685.0,0.18606]
[1643676298997,1.56705979,2686.1,2685.1,0.186]
[1643676299192,0.186,2686.0,2685.2,0.93095]
[1643676299394,1.56705979,2685.9,2685.2,1.11695]
[1643676299592,1.56705979,2685.8,2685.2,1.41695]
[1643676299792,1.56705979,2685.7,2685.2,0.93095]
[1643676299993,0.186,2686.2,2685.2,0.93095]
[1643676300201,1.56712454,2686.1,2685.1,1.86172]
[1643676300394,1.56712454,2686.1,2685.1,2.16172]
[1643676300395,1.75312454,2686.0,2685.1,2.16172]
[1643676300594,1.56712454,2685.9,2685.3,0.93092]
[1643676300842,0.186,2685.8,2685.3,0.93092]
[1643676301039,1.56712454,2685.7,2685.3,0.93092]
[1643676301239,1.56712454,2685.7,2685.3,1.23092]
[1643676301540,0.186,2686.1,2685.5,1.19735003]
[1643676301740,2.32751043,2686.5,2685.6,0.93079]
[1643676301741,1.5670787,2686.0,2685.6,0.93079]
[1643676301943,1.5670787,2685.9,2685.6,1.11679]
[1643676302142,0.70008341,2686.6,2685.6,1.11679]
[1643676302340,1.56691726,2686.5,2685.6,1.11679]
[1643676302543,1.56691726,2686.4,2685.6,1.11679]
[1643676302746,1.56691726,2686.3,2685.6,1.11679]
[1643676302941,1.56691726,2686.2,2685.6,1.11679]
[1643676303142,1.56691726,2686.1,2685.6,1.11679]
[1643676303443,1.56691726,2686.0,2685.6,1.11679]
[1643676303643,0.186,2686.6,2685.6,1.11679]
[1643676303843,1.56688621,2686.5,2685.7,0.18606]
[1643676304044,0.88608341,2686.8,2686.0,0.93064]
[1643676304045,1.56688621,2686.4,2686.0,0.93064]
[1643676304247,0.93077757,2687.0,2686.1,0.721]
[1643676304248,1.56688621,2686.3,2686.1,0.721]
[1643676304486,0.70008341,2687.0,2686.1,0.721]
[1643676304688,0.70008341,2687.1,2686.1,0.721]
[1643676305090,0.70008341,2687.1,2686.2,1.86104]
[1643676305296,2.26681596,2687.1,2686.4,0.73156926]
[1643676305489,2.26681596,2687.1,2686.5,0.9305]
[1643676305690,0.70008341,2687.0,2686.5,0.9305]
[1643676306292,2.26681596,2687.0,2686.3,0.99085603]
[1643676306696,2.39085351,2686.9,2686.2,1.86104]
[1643676306996,0.9307341,2686.6,2686.1,0.186]
[1643676307195,1.75273255,2686.5,2686.1,0.186]
[1643676307392,1.56673255,2686.4,2686.1,0.186]
[1643676307593,0.186,2686.3,2686.1,0.186]
[1643676307798,1.56673255,2686.2,2685.8,0.535]
[1643676308224,1.56673255,2686.1,2686.0,0.93067]
[1643676308433,1.56673255,2686.1,2685.6,5.78169]
[1643676308630,0.186,2686.3,2685.6,1.86139]
[1643676308631,1.56673255,2686.0,2685.6,1.86139]
[1643676308830,0.186,2686.3,2685.6,1.86139]
[1643676309030,1.56691407,2686.2,2685.6,1.86139]
[1643676309234,1.56691407,2686.2,2685.9,0.48895665]
[1643676309432,1.56691407,2686.2,2686.0,0.48895665]
[1643676310634,0.186,2686.1,2686.0,0.48895665]
[1643676310832,1.75291407,2686.1,2686.0,0.48895665]
[1643676311135,1.56691407,2686.1,2686.0,0.48895665]
[1643676311736,4.1,2685.9,2684.8,0.186]
[1643676312008,0.9311658,2685.6,2684.8,0.186]
[1643676312198,1.56691407,2685.5,2684.8,0.186]
[1643676312396,0.1862,2685.4,2684.8,0.186]
[1643676312593,1.56691407,2685.3,2684.8,0.186]
[1643676312794,2.49823407,2685.3,2684.8,0.186]
[1643676313000,1.56691407,2685.2,2684.8,0.186]
[1643676314193,3.73008117,2685.2,2684.8,0.186]
[1643676314392,1.56691407,2685.1,2684.8,0.186]
[1643676315004,2.0488133,2685.4,2684.4,0.93126]
[1643676315194,1.56739069,2685.3,2684.4,0.93126]
[1643676315834,0.1862,2685.4,2684.4,0.93126]
[1643676316135,0.1862,2685.4,2684.4,1.65246]
[1643676316339,0.1862,2685.4,2684.9,0.40808051]
[1643676316540,0.1862,2685.7,2684.8,1.46607]
[1643676316737,1.5672279,2685.6,2684.8,1.46607]
[1643676316937,1.8672279,2685.6,2684.8,0.93107]
[1643676317150,1.7534279,2685.5,2684.6,0.1862]
[1643676317341,1.5672279,2685.4,2684.6,0.1862]
[1643676318151,0.1862,2685.3,2684.3,2.04845]
[1643676318344,1.1174152,2685.3,2684.4,0.18606]
[1643676318543,1.1174152,2685.3,2684.6,0.93112]
[1643676318544,0.9312152,2685.3,2684.6,0.93112]
[1643676318840,1.1174152,2685.3,2684.6,0.93112]
[1643676319142,1.1174152,2685.3,2684.4,0.1862]
[1643676319143,1.4174152,2685.3,2684.4,0.1862]
[1643676319587,1.1174152,2685.3,2684.4,0.1862]
[1643676319788,1.1174152,2685.3,2684.5,0.93116]
[1643676319985,0.9312152,2685.3,2684.5,0.93116]
[1643676320626,0.1862,2685.5,2685.0,1.19336014]
[1643676320796,0.93106,2685.6,2685.0,1.19336014]
[1643676320797,0.1862,2685.6,2685.0,1.19336014]
[1643676320989,0.186,2686.0,2685.0,1.19336014]
[1643676321191,1.56718335,2685.9,2685.0,1.19336014]
[1643676321400,0.186,2685.8,2685.0,1.19336014]
[1643676321588,1.56718335,2685.7,2685.0,1.19336014]
[1643676321792,0.186,2685.6,2685.0,1.19336014]
[1643676321991,1.86718335,2685.7,2684.7,0.1862]
[1643676321992,0.3,2685.7,2684.7,0.1862]
[1643676322191,1.56722672,2685.6,2685.0,0.93098]
[1643676322392,2.49826802,2685.6,2685.0,0.93098]
[1643676322591,2.49826802,2685.6,2684.7,0.1862]
[1643676322592,1.56722672,2685.5,2684.7,0.1862]
[1643676322993,0.9310413,2685.6,2685.0,0.9104196]
[1643676323238,0.9310413,2685.6,2685.2,0.36775342]
[1643676323640,0.9310413,2685.6,2685.0,0.9104196]
[1643676323843,0.18579,2686.1,2685.1,0.535]
[1643676323844,0.186,2686.1,2685.1,0.535]
[1643676324040,1.56708553,2686.0,2685.2,0.186]
[1643676324239,0.27639993,2686.3,2685.2,0.186]
[1643676324240,0.27639993,2686.3,2685.3,0.535]
[1643676324441,1.56706067,2686.2,2685.3,0.535]
[1643676324640,1.56706067,2686.2,2685.3,0.91455828]
[1643676325041,1.56706067,2686.2,2685.3,1.21455828]
[1643676325242,1.56706067,2686.2,2685.3,0.535]
[1643676325440,0.9308907,2686.1,2685.3,0.535]
[1643676325642,1.75306067,2686.0,2685.3,0.535]
[1643676325895,1.56706067,2685.9,2685.3,0.535]
[1643676326047,1.56706067,2685.9,2685.0,8.3247196]
[1643676326242,1.56706067,2685.9,2685.0,3.7516]
[1643676326243,0.186,2685.8,2685.0,3.7516]
[1643676326447,1.56706067,2685.7,2684.7,0.186]
[1643676326646,0.9310641,2685.6,2684.7,2.04798]
[1643676326844,1.75326067,2685.5,2684.5,8.0654]
[1643676327082,1.56733674,2685.4,2684.5,8.0654]
[1643676327882,1.0093,2685.5,2684.5,8.0654]
[1643676328095,1.56733385,2685.4,2684.5,8.0654]
[1643676328289,0.93122,2685.4,2684.5,1.1862]
[1643676328694,1.86246,2685.4,2684.5,1.1862]
[1643676329094,0.9311544,2685.3,2684.5,1.1862]
[1643676329286,0.9311544,2685.3,2684.5,1.57460826]
[1643676329488,0.9311544,2685.3,2684.6,0.93113]
[1643676329686,0.1862,2685.6,2684.6,0.93113]
[1643676329888,0.1862,2685.6,2684.6,1.23113]
[1643676330119,0.9309757,2685.9,2685.1,0.87918281]
[1643676330289,1.56714898,2685.8,2684.7,0.90726]
[1643676330489,0.335502,2686.1,2684.7,0.90726]
[1643676330726,1.56714607,2686.0,2684.7,1.90726]
[1643676330935,0.186,2685.9,2684.7,1.90726]
[1643676331135,0.9310074,2685.7,2684.8,1.86191]
[1643676331340,1.56714607,2685.6,2684.8,2.39691]
[1643676331735,1.56714607,2685.6,2684.8,2.69691]
[1643676332137,3.56714607,2685.5,2684.7,0.1862]
[1643676332340,1.56714607,2685.4,2684.7,0.1862]
[1643676332736,1.56714607,2685.3,2684.7,0.1862]
[1643676333035,0.3,2685.6,2684.7,0.1862]
[1643676333036,1.56714607,2685.2,2684.7,0.1862]
[1643676333236,1.56714607,2685.2,2684.5,1.0]
[1643676333237,0.1862,2685.5,2684.5,1.1862]
[1643676333437,1.56740121,2685.4,2684.5,1.1862]
[1643676333940,3.42988121,2685.4,2684.5,1.1862]
[1643676334138,0.9311861,2685.2,2684.2,4.12456407]
[1643676334341,4.40636224,2685.1,2684.2,3.8032]
[1643676334579,1.75360121,2685.0,2684.2,3.8032]
[1643676334880,0.1862,2685.0,2684.2,3.8032]
[1643676335079,1.11647927,2685.0,2684.2,4.48489035]
[1643676335280,1.11746,2685.4,2684.2,3.8032]
[1643676335484,3.71368484,2685.3,2684.2,3.8032]
[1643676335690,1.75366454,2685.2,2684.2,3.9894]
[1643676335884,1.75366454,2685.2,2684.2,3.8032]
[1643676335885,1.56746454,2685.1,2684.2,3.8032]
[1643676336086,0.9312953,2684.9,2684.2,3.8032]
[1643676336289,0.93141,2684.8,2684.2,3.8032]
[1643676336535,1.75395485,2684.7,2683.8,0.1862]
[1643676336688,1.75395485,2684.7,2683.4,7.62606]
[1643676336689,1.56775485,2684.6,2683.4,0.1862]
[1643676336888,1.56775485,2684.6,2683.9,0.04092649]
[1643676337190,0.1862,2685.1,2683.8,0.18606]
[1643676337387,1.56755109,2685.0,2684.5,0.32588745]
[1643676337608,1.56755109,2684.9,2684.0,0.535]
[1643676337787,4.6639,2685.2,2684.5,0.75845447]
[1643676337788,0.1862,2685.2,2684.5,0.75845447]
[1643676337989,1.56747049,2685.1,2684.5,0.75845447]
[1643676338235,1.56747049,2685.1,2684.3,0.535]
[1643676338735,1.56747049,2685.2,2684.3,0.535]
[1643676338940,1.56747049,2685.1,2684.3,0.535]
[1643676339142,1.56747049,2685.0,2684.4,0.76294405]
[1643676339336,0.1862,2685.3,2684.4,0.76294405]
[1643676339537,0.9312595,2685.1,2684.3,0.535]
[1643676339738,1.56747821,2685.0,2684.3,0.535]
[1643676340140,0.1862,2684.9,2684.3,0.535]
[1643676340340,0.1862,2684.9,2684.0,0.1862]
[1643676340341,1.5675189,2684.8,2684.0,0.1862]
[1643676340542,1.5675189,2684.8,2684.2,0.41757623]
[1643676340845,0.4862,2685.0,2684.2,1.18933823]
[1643676340846,0.1862,2685.0,2684.2,1.18933823]
[1643676341146,1.56755651,2684.9,2684.2,1.18933823]
[1643676341345,1.56755651,2684.8,2684.1,0.1862]
[1643676341552,0.1862,2685.0,2684.0,0.535]
[1643676341778,1.56758107,2684.9,2684.0,0.535]
[1643676341979,1.56758107,2684.9,2684.0,0.7212]
[1643676342284,1.86758107,2684.9,2684.0,0.7212]
[1643676342481,1.56758107,2684.8,2684.0,0.7212]
[1643676342683,1.75378107,2684.8,2684.0,0.535]
[1643676342882,1.56758107,2684.7,2684.0,0.535]
[1643676343085,1.56758107,2684.7,2683.9,4.55696812]
[1643676343292,1.56758107,2684.7,2683.7,0.1862]
[1643676343293,1.86758107,2684.7,2683.7,0.1862]
[1643676343485,1.86758107,2684.7,2683.6,1.90547176]
[1643676343486,1.75378107,2684.6,2684.0,0.04035807]
[1643676343691,1.56758107,2684.5,2683.8,0.04149492]
[1643676343899,0.1862,2684.4,2683.7,0.04206334]
[1643676344089,0.4862,2684.5,2683.7,0.04206334]
[1643676344889,0.1862,2684.8,2683.7,0.04206334]
[1643676345088,0.9315044,2684.6,2683.7,0.04206334]
[1643676345292,1.1177044,2684.6,2683.7,0.04206334]
[1643676345735,1.56768068,2684.5,2683.7,0.04206334]
[1643676346343,0.9315044,2684.6,2683.7,0.04206334]
[1643676346544,1.56773393,2684.5,2683.7,0.04206334]
[1643676348168,3.65110208,2684.5,2683.7,0.04206334]
[1643676348347,0.9316018,2684.3,2683.7,0.04206334]
[1643676348550,1.75363211,2684.2,2683.7,0.04206334]
[1643676348747,1.75404211,2684.1,2683.3,0.04433703]
[1643676348948,1.56784211,2684.0,2683.3,0.04433703]
[1643676349145,0.1862,2683.9,2683.3,0.04433703]
[1643676349795,1.4180218,2684.0,2683.3,0.04433703]
[1643676349994,1.56811854,2683.9,2683.3,0.04433703]
[1643676350191,1.7180218,2684.0,2683.3,0.04433703]
[1643676350192,0.1862,2683.8,2683.3,0.04433703]
[1643676350392,0.1862,2683.9,2683.3,0.04433703]
[1643676350595,0.4862,2683.9,2683.3,0.04433703]
[1643676350992,0.7862,2683.9,2683.3,0.04433703]
[1643676351196,0.4862,2683.9,2683.3,0.04433703]
[1643676351594,0.1862,2683.9,2683.3,0.04433703]
[1643676351795,0.1862,2684.1,2683.3,0.04433703]
[1643676351997,0.13819996,2684.2,2684.0,0.38424992]
[1643676352395,0.1862,2684.6,2684.0,0.38424992]
[1643676352597,1.56797434,2684.5,2683.4,0.1862]
[1643676352796,0.1862,2684.8,2683.4,0.1862]
[1643676352797,1.56797434,2684.4,2683.5,1.86298]
[1643676352998,1.56797434,2684.3,2683.5,1.90618019]
[1643676353236,1.56797434,2684.2,2683.6,0.04263176]
[1643676353433,1.56797434,2684.1,2683.6,0.04263176]
[1643676353638,0.18579,2684.5,2683.6,0.41291259]
[1643676353839,1.75418959,2684.4,2683.6,0.41291259]
[1643676354040,1.56798959,2684.3,2683.7,0.04206334]
[1643676354338,2.4923092,2684.7,2683.7,0.04206334]
[1643676354339,0.3,2684.6,2683.7,0.04206334]
[1643676354537,1.56789889,2684.5,2683.7,0.04206334]
[1643676354743,1.86789889,2684.5,2683.7,0.04206334]
[1643676354938,1.56789889,2684.4,2683.7,0.04206334]
[1643676355139,0.1862,2684.3,2683.7,0.04206334]
[1643676355339,1.75409889,2684.4,2683.7,0.04206334]
[1643676355939,1.56789889,2684.3,2683.7,0.04206334]
[1643676356347,1.56631293,2684.3,2683.7,0.04206334]
[1643676356546,0.1862,2684.6,2683.7,0.04206334]
[1643676357187,0.9316482,2684.5,2683.7,0.04206334]
[1643676357393,2.35811601,2684.4,2683.7,0.04206334]
[1643676357888,2.65811601,2684.4,2683.7,0.04206334]
[1643676359092,3.58983601,2684.4,2683.7,0.04206334]
[1643676359490,3.58983601,2684.4,2683.4,0.04376861]
[1643676360293,3.58983601,2684.4,2683.6,0.34618483]
[1643676360741,3.58983601,2684.4,2683.7,0.04206334]
[1643676361341,0.4862,2684.4,2683.7,0.04206334]
[1643676361540,1.080999,2684.7,2683.8,0.1862]
[1643676361744,0.149379,2684.7,2684.5,0.33610001]
[1643676361950,0.149379,2684.7,2684.3,0.95009171]
[1643676362142,0.149379,2684.7,2684.4,0.1862]
[1643676363340,0.149379,2684.7,2684.5,0.39164501]
[1643676363941,0.149379,2684.7,2684.5,1.20467871]
[1643676365588,0.149379,2684.7,2684.6,0.1862]
[1643676366396,0.149379,2684.7,2684.6,0.18500487]
[1643676366597,0.69870089,2685.4,2684.6,0.18500487]
[1643676367494,0.69870089,2685.4,2684.7,0.91935329]
[1643676367800,0.69870089,2685.4,2685.2,0.32871777]
[1643676367993,0.56606197,2685.6,2685.2,0.32871777]
[1643676367994,1.26476286,2685.6,2685.2,0.32871777]
[1643676368268,1.26476286,2685.6,2684.7,0.91935329]
[1643676368648,2.17536988,2685.5,2684.6,4.07400487]
[1643676368851,0.69870089,2685.5,2684.6,4.07400487]
[1643676369052,0.69870089,2685.4,2684.6,4.07400487]
[1643676369749,0.69870089,2685.4,2684.6,4.87733593]
[1643676369949,0.69870089,2685.4,2684.6,4.07400487]
[1643676370151,0.69870089,2685.4,2684.3,0.93122]
[1643676370152,0.69870089,2685.1,2684.3,0.1862]
[1643676370354,0.69870089,2685.0,2684.3,0.1862]
[1643676370551,0.69870089,2685.1,2684.2,3.4169]
[1643676370952,2.1110876,2685.0,2684.2,3.4169]
[1643676371155,0.69870089,2685.1,2684.5,0.42363305]
[1643676371453,2.05813953,2685.0,2684.5,0.42363305]
[1643676371653,2.05407653,2685.0,2684.5,0.42363305]
[1643676371853,2.75277742,2685.0,2684.5,0.42363305]
[1643676372107,0.69870089,2685.0,2684.5,0.42363305]
[1643676372306,0.88490089,2685.1,2684.5,0.42363305]
[1643676373912,1.18490089,2685.1,2684.5,0.42363305]
[1643676374211,0.88490089,2685.1,2684.5,0.42363305]
[1643676374611,0.88490089,2685.1,2684.2,4.15454811]
[1643676374816,0.69870089,2685.0,2684.2,4.15454811]
[1643676375012,0.69870089,2685.1,2684.2,4.15454811]
[1643676375212,0.1862,2685.2,2684.3,0.93126]
[1643676375426,0.69870089,2685.3,2684.3,0.93126]
[1643676375874,0.69870089,2685.3,2684.9,0.33620797]
[1643676376433,2.26630553,2685.3,2684.9,0.33620797]
[1643676376634,1.56760464,2685.2,2684.9,0.33620797]
[1643676376834,1.56760464,2685.1,2684.9,0.33620797]
[1643676377034,1.56760464,2685.0,2684.9,0.33620797]
[1643676377236,1.56760464,2685.1,2684.9,0.33620797]
[1643676377436,1.56760464,2685.0,2684.9,0.33620797]
[1643676377635,0.1862,2685.5,2684.9,0.33620797]
[1643676377636,2.26630553,2685.3,2684.9,0.33620797]
[1643676377836,1.56760464,2685.2,2684.9,0.33620797]
[1643676378040,1.56760464,2685.1,2684.5,0.93117]
[1643676378236,0.69870089,2685.4,2684.5,0.93117]
[1643676378237,1.56760464,2685.0,2684.5,0.93117]
[1643676378443,1.56760464,2684.9,2684.5,0.93117]
[1643676378736,1.56760464,2684.8,2684.6,0.1862]
[1643676378936,1.56760464,2684.7,2684.6,0.1862]
[1643676379136,1.56760464,2684.7,2684.6,1.31102901]
[1643676379337,0.69870089,2685.2,2684.6,1.31102901]
[1643676379619,0.69870089,2685.2,2684.6,1.12482901]
[1643676379814,1.56760464,2685.1,2684.6,1.12482901]
[1643676380018,1.56760464,2685.0,2684.6,1.12482901]
[1643676380214,1.56760464,2684.9,2684.6,1.12482901]
[1643676380417,1.56760464,2684.8,2684.6,0.40392367]
[1643676380618,1.56760464,2684.7,2684.6,0.40392367]
[1643676381125,2.26630553,2685.2,2684.6,0.40392367]
[1643676381320,1.56760464,2685.1,2684.6,1.18175289]
[1643676381520,1.56760464,2685.0,2684.6,1.18175289]
[1643676381719,1.56760464,2684.9,2684.6,1.18175289]
[1643676382123,2.0,2685.2,2684.5,1.11737]
[1643676382323,1.67240611,2684.2,2684.1,0.1862]
[1643676382522,1.56760464,2684.2,2684.1,0.1862]
[1643676382924,0.69870089,2684.7,2684.1,0.1862]
[1643676383128,2.26630553,2684.7,2684.1,0.1862]
[1643676383345,0.69870089,2684.5,2684.1,0.1862]
[1643676383543,4.46220553,2684.5,2684.1,0.1862]
[1643676383746,1.56760464,2684.4,2684.1,0.1862]
[1643676384143,2.49928044,2684.4,2684.1,0.1862]
[1643676384346,1.56760464,2684.3,2684.1,0.1862]
[1643676385750,2.47553092,2684.2,2683.7,0.04206334]
[1643676385953,1.56760464,2684.1,2683.7,0.04206334]
[1643676386151,0.9318219,2683.9,2683.4,0.04376861]
[1643676386350,1.75380464,2683.8,2683.4,0.04376861]
[1643676386549,1.56760464,2683.7,2683.4,0.04376861]
[1643676386851,0.1862,2684.1,2683.5,0.33869575]
[1643676387084,2.11747757,2684.7,2683.5,0.52489575]
[1643676387085,1.5680057,2684.0,2683.5,0.52489575]
[1643676387284,0.69870089,2684.6,2683.5,0.52489575]
[1643676387285,2.26670659,2684.6,2683.6,0.04263176]
[1643676387492,1.5680057,2684.5,2683.6,0.04263176]
[1643676387684,1.5680057,2684.4,2684.0,0.32787694]
[1643676387885,1.5680057,2684.6,2683.8,0.88760969]
[1643676388091,1.5680057,2684.5,2683.7,0.1862]